fUSD/lending_fUSD_20260217
["ID","MTS","AMOUNT","RATE_DAILY","PERIOD"]
[405846104,1771357845770,-151.0,0.00013153,2]
[405846105,1771357845783,-773.2413689,0.00013208,2]
[405846106,1771357845796,-151.0,0.00013208,2]
[405846107,1771357845809,-801.85129955,0.00013263,2]
[405846108,1771357845823,-151.0,0.00013263,2]
[405846109,1771357845836,-1500.0,0.00013268,2]
[405846110,1771357845848,-1500.0,0.00013268,2]
[405846111,1771357845860,-1500.0,0.00013268,2]
[405846112,1771357845871,-1000.0,0.00013268,2]
[405846113,1771357845882,-806.86059886,0.00013268,2]
[405846114,1771357845892,-623.71743587,0.00013268,2]
[405846115,1771357845901,-616.56100589,0.00013268,2]
[405846116,1771357845910,-1500.0,0.00013268,2]
[405846117,1771357845920,-932.93855102,0.00013268,2]
[405846118,1771357845929,-1500.0,0.00013268,2]
[405846119,1771357845938,-1500.0,0.00013268,2]
[405846120,1771357845948,-1500.0,0.00013268,2]
[405846121,1771357845957,-1513.76878479,0.00013268,2]
[405846122,1771357845967,-344.71223806,0.00013268,2]
[405846123,1771357845976,-1500.0,0.00013268,2]
[405846124,1771357845986,-1500.0,0.00013268,2]
[405846125,1771357845995,-200.0,0.00013288,2]
[405846126,1771357846469,-500.0,0.00013288,2]
[405846127,1771357846492,-831.51979763,0.00013318,2]
[405846128,1771357846522,-151.0,0.00013318,2]
[405846129,1771357846533,-862.28603014,0.00013373,2]
[405846130,1771357846544,-151.0,0.00013373,2]
[405846131,1771357846555,-500.0,0.00013425,2]
[405846132,1771357846565,-500.0,0.00013425,2]
[405846133,1771357846574,-237.28842339,0.00013425,2]
[405846134,1771357846583,-214.0121963,0.00013425,2]
[405846135,1771357846593,-894.19061326,0.00013428,2]
[405846136,1771357846603,-151.0,0.00013428,2]
[405846137,1771357846612,-500.0,0.0001348,2]
[405846138,1771357846622,-927.27566595,0.00013483,2]
[405846139,1771357846631,-151.0,0.00013483,2]
[405846140,1771357846642,-500.0,0.00013535,2]
[405846141,1771357846651,-961.58486559,0.00013538,2]
[405846142,1771357846663,-151.0,0.00013538,2]
[405846143,1771357846674,-500.0,0.00013589,2]
[405846144,1771357846683,-181.08010149,0.00013591,2]
[405846145,1771357846693,-771.01748645,0.00013591,2]
[405846146,1771357846705,-287.61899177,0.00013591,2]
[405846147,1771357846718,-200.0,0.00013591,2]
[405846148,1771357846729,-997.16350561,0.00013593,2]
[405846149,1771357846740,-151.0,0.00013593,2]
[405846150,1771357846749,-69727.92292418,0.00013598,2]
[405846151,1771357846759,-500.0,0.00013644,2]
[405846152,1771357846768,-151.0,0.00013648,2]
[405846153,1771357846778,-1580.81275906,0.00013688,2]
[405846154,1771357846787,-151.0,0.00013695,2]
[405846155,1771357846796,-546.97,0.00013698,2]
[405846156,1771357846806,-546.97,0.00013698,2]
[405846157,1771357846815,-546.97,0.00013698,2]
[405846158,1771357846825,-546.97,0.00013698,2]
[405846159,1771357846835,-546.97,0.00013698,2]
[405846160,1771357846844,-546.97,0.00013698,2]
[405846161,1771357846853,-546.97,0.00013698,2]
[405846162,1771357846863,-546.97,0.00013698,2]
[405846163,1771357846872,-546.97,0.00013698,2]
[405846164,1771357846882,-546.97,0.00013698,2]
[405846165,1771357846891,-546.97,0.00013698,2]
[405846166,1771357846900,-546.97,0.00013698,2]
[405846167,1771357846909,-546.97,0.00013698,2]
[405846168,1771357846919,-546.97,0.00013698,2]
[405846169,1771357846928,-546.97,0.00013698,2]
[405846170,1771357846937,-546.97,0.00013698,2]
[405846171,1771357846947,-546.97,0.00013698,2]
[405846172,1771357846956,-546.97,0.00013698,2]
[405846173,1771357846965,-546.97,0.00013698,2]
[405846174,1771357846974,-546.97,0.00013698,2]
[405846175,1771357846983,-546.97,0.00013698,2]
[405846176,1771357846992,-546.97,0.00013698,2]
[405846177,1771357847002,-546.97,0.00013698,2]
[405846178,1771357847011,-547.09394166,0.00013698,2]
[405846179,1771357847020,-500.0,0.00013698,2]
[405846180,1771357847029,-500.0,0.00013698,2]
[405846181,1771357847038,-500.0,0.00013698,2]
[405846182,1771357847047,-500.0,0.00013698,2]
[405846183,1771357847056,-500.0,0.00013698,2]
[405846184,1771357847065,-500.0,0.00013698,2]
[405846185,1771357847074,-500.0,0.00013698,2]
[405846186,1771357847083,-500.0,0.00013698,2]
[405846187,1771357847092,-500.0,0.00013698,2]
[405846188,1771357847101,-500.0,0.00013698,2]
[405846189,1771357847110,-1479.1,0.00013698,2]
[405846190,1771357847119,-500.0,0.00013698,2]
[405846191,1771357847128,-1479.1,0.00013698,2]
[405846192,1771357847138,-500.0,0.00013698,2]
[405846193,1771357847148,-1479.1,0.00013698,2]
[405846194,1771357847157,-500.0,0.00013698,2]
[405846195,1771357847166,-1479.1,0.00013698,2]
[405846196,1771357847175,-500.0,0.00013698,2]
[405846197,1771357847184,-1479.1,0.00013698,2]
[405846198,1771357847194,-500.0,0.00013698,2]
[405846199,1771357847204,-1479.1,0.00013698,2]
[405846200,1771357847212,-500.0,0.00013698,2]
[405846201,1771357847224,-1479.1,0.00013698,2]
[405846202,1771357847234,-500.0,0.00013698,2]
[405846203,1771357847245,-1479.1,0.00013698,2]
[405846204,1771357847254,-500.0,0.00013698,2]
[405846205,1771357847263,-1479.1,0.00013698,2]
[405846206,1771357847272,-500.0,0.00013698,2]
[405846207,1771357847282,-1479.1,0.00013698,2]
[405846208,1771357847291,-500.0,0.00013698,2]
[405846209,1771357847302,-1479.1,0.00013698,2]
[405846210,1771357847311,-500.0,0.00013698,2]
[405846211,1771357847321,-1479.1,0.00013698,2]
[405846212,1771357847331,-500.0,0.00013698,2]
[405846213,1771357847341,-383.99953744,0.00013698,2]
[405846214,1771357847350,-1479.1,0.00013698,2]
[405846215,1771357847360,-1479.1,0.00013698,2]
[405846216,1771357847370,-1479.1,0.00013698,2]
[405846217,1771357847379,-1479.1,0.00013698,2]
[405846218,1771357847388,-1479.1,0.00013698,2]
[405846219,1771357847399,-1479.1,0.00013698,2]
[405846220,1771357847408,-1479.1,0.00013698,2]
[405846221,1771357847417,-1479.1,0.00013698,2]
[405846222,1771357847428,-1479.1,0.00013698,2]
[405846223,1771357847439,-1479.1,0.00013698,2]
[405846224,1771357847449,-1479.1,0.00013698,2]
[405846225,1771357847459,-1479.19350963,0.00013698,2]
[405846226,1771357847469,-500.0,0.00013698,2]
[405846227,1771357847481,-500.0,0.00013698,2]
[405846228,1771357847491,-500.0,0.00013698,2]
[405846229,1771357847501,-500.0,0.00013698,2]
[405846230,1771357847509,-500.0,0.00013698,2]
[405846231,1771357847520,-500.0,0.00013698,2]
[405846232,1771357847530,-500.0,0.00013698,2]
[405846233,1771357847540,-500.0,0.00013698,2]
[405846234,1771357847550,-500.0,0.00013698,2]
[405846235,1771357847559,-391.46615766,0.00013698,2]
[405846236,1771357847570,-500.0,0.00013698,2]
[405846237,1771357847581,-500.0,0.00013698,2]
[405846238,1771357847591,-500.0,0.00013698,2]
[405846239,1771357847602,-500.0,0.00013698,2]
[405846240,1771357847611,-500.0,0.00013698,2]
[405846241,1771357847622,-500.0,0.00013698,2]
[405846242,1771357847633,-500.0,0.00013698,2]
[405846243,1771357847643,-500.0,0.00013698,2]
[405846244,1771357847653,-500.0,0.00013698,2]
[405846245,1771357847663,-500.0,0.00013698,2]
[405846246,1771357847675,-500.0,0.00013698,2]
[405846247,1771357847685,-500.0,0.00013698,2]
[405846248,1771357847695,-200.92210999,0.00013698,2]
[405846249,1771357847704,-1625.05,0.00013698,2]
[405846250,1771357847714,-1625.05,0.00013698,2]
[405846251,1771357847723,-1625.05,0.00013698,2]
[405846252,1771357847732,-1625.05,0.00013698,2]
[405846253,1771357847744,-1625.05,0.00013698,2]
[405846254,1771357847753,-1625.05,0.00013698,2]
[405846255,1771357847763,-1625.05,0.00013698,2]
[405846256,1771357847773,-1625.05,0.00013698,2]
[405846257,1771357847783,-1625.05,0.00013698,2]
[405846258,1771357847793,-1625.05,0.00013698,2]
[405846259,1771357847803,-1625.05,0.00013698,2]
[405846260,1771357847812,-1625.05,0.00013698,2]
[405846261,1771357847821,-1625.05,0.00013698,2]
[405846262,1771357847830,-1625.05,0.00013698,2]
[405846263,1771357847840,-1625.05,0.00013698,2]
[405846264,1771357847850,-1625.05,0.00013698,2]
[405846265,1771357847859,-1625.05,0.00013698,2]
[405846266,1771357847868,-1625.05,0.00013698,2]
[405846267,1771357847878,-1625.05,0.00013698,2]
[405846268,1771357847887,-1625.05,0.00013698,2]
[405846269,1771357847896,-1625.05,0.00013698,2]
[405846270,1771357847906,-1625.05,0.00013698,2]
[405846271,1771357847915,-1625.05,0.00013698,2]
[405846272,1771357847924,-1625.15,0.00013698,2]
[405846273,1771357847934,-1546.47,0.00013698,2]
[405846274,1771357847944,-1546.47,0.00013698,2]
[405846275,1771357847955,-1546.47,0.00013698,2]
[405846276,1771357847964,-1546.47,0.00013698,2]
[405846277,1771357847974,-1546.47,0.00013698,2]
[405846278,1771357847984,-1546.47,0.00013698,2]
[405846279,1771357847995,-1546.47,0.00013698,2]
[405846280,1771357848005,-1546.47,0.00013698,2]
[405846281,1771357848015,-1546.47,0.00013698,2]
[405846282,1771357848026,-1546.47,0.00013698,2]
[405846283,1771357848036,-1546.47,0.00013698,2]
[405846284,1771357848048,-1546.47,0.00013698,2]
[405846285,1771357848057,-1546.47,0.00013698,2]
[405846286,1771357848067,-1546.47,0.00013698,2]
[405846287,1771357848076,-1546.47,0.00013698,2]
[405846288,1771357848086,-1546.47,0.00013698,2]
[405846289,1771357848097,-1546.47,0.00013698,2]
[405846290,1771357848107,-1546.47,0.00013698,2]
[405846291,1771357848116,-1546.47,0.00013698,2]
[405846292,1771357848126,-1546.47,0.00013698,2]
[405846293,1771357848136,-1546.47,0.00013698,2]
[405846294,1771357848145,-1546.47,0.00013698,2]
[405846295,1771357848156,-1546.47,0.00013698,2]
[405846296,1771357848166,-1546.51311819,0.00013698,2]
[405846297,1771357848177,-500.0,0.00013698,2]
[405846298,1771357848188,-500.0,0.00013698,2]
[405846299,1771357848198,-500.0,0.00013698,2]
[405846300,1771357848207,-500.0,0.00013698,2]
[405846301,1771357848217,-500.0,0.00013698,2]
[405846302,1771357848226,-494.24526323,0.00013698,2]
[405846303,1771357848235,-516.5,0.00013698,2]
[405846304,1771357848244,-516.5,0.00013698,2]
[405846305,1771357848254,-516.5,0.00013698,2]
[405846306,1771357848263,-516.5,0.00013698,2]
[405846307,1771357848272,-516.5,0.00013698,2]
[405846308,1771357848282,-516.5,0.00013698,2]
[405846309,1771357848291,-516.5,0.00013698,2]
[405846310,1771357848300,-516.5,0.00013698,2]
[405846311,1771357848310,-516.5,0.00013698,2]
[405846312,1771357848320,-516.5,0.00013698,2]
[405846313,1771357848329,-516.5,0.00013698,2]
[405846314,1771357848338,-516.5,0.00013698,2]
[405846315,1771357848347,-516.5,0.00013698,2]
[405846316,1771357848356,-516.5,0.00013698,2]
[405846317,1771357848366,-516.5,0.00013698,2]
[405846318,1771357848375,-516.5,0.00013698,2]
[405846319,1771357848384,-516.5,0.00013698,2]
[405846320,1771357848394,-516.5,0.00013698,2]
[405846321,1771357848403,-516.5,0.00013698,2]
[405846322,1771357848412,-516.5,0.00013698,2]
[405846323,1771357848422,-516.5,0.00013698,2]
[405846324,1771357848436,-516.5,0.00013698,2]
[405846325,1771357848445,-516.5,0.00013698,2]
[405846326,1771357848454,-516.63,0.00013698,2]
[405846327,1771357848464,-500.0,0.00013698,2]
[405846328,1771357848473,-500.0,0.00013698,2]
[405846329,1771357848483,-500.0,0.00013698,2]
[405846330,1771357848492,-191.17661539,0.00013698,2]
[405846331,1771357848501,-500.0,0.00013698,2]
[405846332,1771357848510,-500.0,0.00013698,2]
[405846333,1771357848519,-500.0,0.00013698,2]
[405846334,1771357848528,-500.0,0.00013698,2]
[405846335,1771357848537,-500.0,0.00013698,2]
[405846336,1771357848546,-500.0,0.00013698,2]
[405846337,1771357848555,-500.0,0.00013698,2]
[405846338,1771357848564,-500.0,0.00013698,2]
[405846339,1771357848573,-500.0,0.00013698,2]
[405846340,1771357848582,-500.0,0.00013698,2]
[405846341,1771357848592,-500.0,0.00013698,2]
[405846342,1771357848601,-500.0,0.00013698,2]
[405846343,1771357848610,-500.0,0.00013698,2]
[405846344,1771357848619,-500.0,0.00013698,2]
[405846345,1771357848628,-500.0,0.00013698,2]
[405846346,1771357848638,-307.56,0.00013698,2]
[405846347,1771357848648,-500.0,0.00013698,2]
[405846348,1771357848658,-500.0,0.00013698,2]
[405846349,1771357848671,-500.0,0.00013698,2]
[405846350,1771357848680,-505.58518338,0.00013698,2]
[405846351,1771357848691,-500.0,0.00013698,2]
[405846352,1771357848700,-500.0,0.00013698,2]
[405846353,1771357848711,-500.0,0.00013698,2]
[405846354,1771357848720,-500.0,0.00013698,2]
[405846355,1771357848731,-500.0,0.00013698,2]
[405846356,1771357848743,-474.03942024,0.00013698,2]
[405846357,1771357848752,-500.0,0.00013698,2]
[405846358,1771357848762,-500.0,0.00013698,2]
[405846359,1771357848772,-571.27519115,0.00013698,2]
[405846360,1771357848782,-528.4390448,0.00013698,2]
[405846361,1771357848791,-607.92,0.00013698,2]
[405846362,1771357848802,-607.92,0.00013698,2]
[405846363,1771357848812,-607.92,0.00013698,2]
[405846364,1771357848822,-607.92,0.00013698,2]
[405846365,1771357848831,-607.92,0.00013698,2]
[405846366,1771357848842,-607.92,0.00013698,2]
[405846367,1771357848854,-607.92,0.00013698,2]
[405846368,1771357848864,-607.92,0.00013698,2]
[405846369,1771357848873,-607.92,0.00013698,2]
[405846370,1771357848883,-607.92,0.00013698,2]
[405846371,1771357848893,-607.92,0.00013698,2]
[405846372,1771357848902,-607.92,0.00013698,2]
[405846373,1771357848912,-607.92,0.00013698,2]
[405846374,1771357848922,-607.92,0.00013698,2]
[405846375,1771357848931,-607.92,0.00013698,2]
[405846376,1771357848941,-607.92,0.00013698,2]
[405846377,1771357848951,-607.92,0.00013698,2]
[405846378,1771357848960,-607.92,0.00013698,2]
[405846379,1771357848970,-607.92,0.00013698,2]
[405846380,1771357848980,-607.92,0.00013698,2]
[405846381,1771357848989,-607.92,0.00013698,2]
[405846382,1771357848999,-607.92,0.00013698,2]
[405846383,1771357849010,-607.92,0.00013698,2]
[405846384,1771357849019,-607.92,0.00013698,2]
[405846385,1771357849028,-931.43,0.00013698,2]
[405846386,1771357849038,-931.43,0.00013698,2]
[405846387,1771357849048,-931.43,0.00013698,2]
[405846388,1771357849058,-931.43,0.00013698,2]
[405846389,1771357849068,-931.43,0.00013698,2]
[405846390,1771357849077,-931.43,0.00013698,2]
[405846391,1771357849087,-931.43,0.00013698,2]
[405846392,1771357849096,-931.43,0.00013698,2]
[405846393,1771357849107,-931.43,0.00013698,2]
[405846394,1771357849116,-931.43,0.00013698,2]
[405846395,1771357849126,-931.43,0.00013698,2]
[405846396,1771357849135,-931.43,0.00013698,2]
[405846397,1771357849145,-931.43,0.00013698,2]
[405846398,1771357849154,-931.43,0.00013698,2]
[405846399,1771357849164,-931.43,0.00013698,2]
[405846400,1771357849174,-931.43,0.00013698,2]
[405846401,1771357849185,-931.43,0.00013698,2]
[405846402,1771357849196,-931.43,0.00013698,2]
[405846403,1771357849206,-931.43,0.00013698,2]
[405846404,1771357849215,-931.43,0.00013698,2]
[405846405,1771357849227,-931.43,0.00013698,2]
[405846406,1771357849236,-931.43,0.00013698,2]
[405846407,1771357849246,-931.43,0.00013698,2]
[405846408,1771357849256,-931.65,0.00013698,2]
[405846409,1771357849266,-500.0,0.00013698,2]
[405846410,1771357849276,-500.0,0.00013698,2]
[405846411,1771357849285,-500.0,0.00013698,2]
[405846412,1771357849295,-500.0,0.00013698,2]
[405846413,1771357849304,-586.00467181,0.00013698,2]
[405846414,1771357849313,-500.0,0.00013698,2]
[405846415,1771357849323,-500.0,0.00013698,2]
[405846416,1771357849332,-500.0,0.00013698,2]
[405846417,1771357849342,-500.0,0.00013698,2]
[405846418,1771357849351,-500.0,0.00013698,2]
[405846419,1771357849360,-321.35543779,0.00013698,2]
[405846420,1771357849369,-500.0,0.00013698,2]
[405846421,1771357849379,-500.0,0.00013698,2]
[405846422,1771357849388,-500.0,0.00013698,2]
[405846423,1771357849398,-500.0,0.00013698,2]
[405846424,1771357849407,-463.4906551,0.00013698,2]
[405846425,1771357849416,-500.0,0.00013698,2]
[405846426,1771357849425,-500.0,0.00013698,2]
[405846427,1771357849435,-509.4313423,0.00013698,2]
[405846428,1771357849444,-1013.23,0.00013698,2]
[405846429,1771357849453,-1013.23,0.00013698,2]
[405846430,1771357849463,-1013.23,0.00013698,2]
[405846431,1771357849472,-1013.23,0.00013698,2]
[405846432,1771357849482,-1013.23,0.00013698,2]
[405846433,1771357849491,-1013.23,0.00013698,2]
[405846434,1771357849501,-1013.23,0.00013698,2]
[405846435,1771357849510,-1013.23,0.00013698,2]
[405846436,1771357849520,-1013.23,0.00013698,2]
[405846437,1771357849530,-1013.23,0.00013698,2]
[405846438,1771357849539,-1013.23,0.00013698,2]
[405846439,1771357849549,-1013.23,0.00013698,2]
[405846440,1771357849559,-1013.23,0.00013698,2]
[405846441,1771357849570,-1013.23,0.00013698,2]
[405846442,1771357849580,-1013.23,0.00013698,2]
[405846443,1771357849589,-1013.23,0.00013698,2]
[405846444,1771357849598,-1013.23,0.00013698,2]
[405846445,1771357849608,-1013.23,0.00013698,2]
[405846446,1771357849617,-1013.23,0.00013698,2]
[405846447,1771357849628,-1013.23,0.00013698,2]
[405846448,1771357849638,-1013.23,0.00013698,2]
[405846449,1771357849647,-1013.23,0.00013698,2]
[405846450,1771357849657,-1013.23,0.00013698,2]
[405846451,1771357849670,-1013.32589873,0.00013698,2]
[405846452,1771357849681,-500.0,0.00013698,2]
[405846453,1771357849897,-536.56841648,0.00013698,2]
[405846454,1771357849907,-4479.21,0.00013699,2]
[405846455,1771357849917,-3936.54,0.00013699,2]
[405846456,1771357849926,-500.0,0.00013699,2]
[405846457,1771357849936,-712.99,0.00013699,2]
[405846458,1771357849946,-500.0,0.00013699,2]
[405846459,1771357849955,-151.02878078,0.00013699,2]
[405846460,1771357849966,-406.7,0.000137,2]
[405846461,1771357849975,-406.7,0.000137,2]
[405846462,1771357849985,-406.7,0.000137,2]
[405846463,1771357849995,-406.7,0.000137,2]
[405846464,1771357850004,-406.7,0.000137,2]
[405846465,1771357850018,-151.0,0.00013703,2]
[405846466,1771357850027,-500.0,0.00013754,2]
[405846467,1771357850037,-151.0,0.00013758,2]
[405846468,1771357850046,-41389.96350954,0.00013773,2]
[405846469,1771357850055,-500.0,0.00013809,2]
[405846470,1771357850064,-151.0,0.00013813,2]
[405846471,1771357850074,-503.8182606,0.00013816,2]
[405846472,1771357850083,-2000.0,0.00013816,2]
[405846473,1771357850092,-2000.0,0.00013816,2]
[405846474,1771357850102,-2000.0,0.00013816,2]
[405846475,1771357850111,-2000.0,0.00013816,2]
[405846476,1771357850121,-2000.0,0.00013816,2]
[405846477,1771357850130,-226.6191256,0.00013816,2]
[405846478,1771357850139,-2000.0,0.00013816,2]
[405846479,1771357850149,-2000.0,0.00013816,2]
[405846480,1771357850159,-200.0,0.00013836,2]
[405846481,1771357850168,-500.0,0.00013863,2]
[405846482,1771357850177,-500.0,0.00013873,2]
[405846483,1771357850186,-500.0,0.00013873,2]
[405846484,1771357850196,-500.0,0.00013873,2]
[405846485,1771357850206,-500.0,0.00013873,2]
[405846486,1771357850215,-500.0,0.00013873,2]
[405846487,1771357850226,-500.0,0.00013873,2]
[405846488,1771357850235,-500.0,0.00013873,2]
[405846489,1771357850245,-500.0,0.00013873,2]
[405846490,1771357850254,-500.0,0.00013873,2]
[405846491,1771357850264,-500.0,0.00013873,2]
[405846492,1771357850273,-500.0,0.00013873,2]
[405846493,1771357850282,-523.64780308,0.00013873,2]
[405846494,1771357850292,-500.0,0.00013873,2]
[405846495,1771357850302,-162.40112722,0.00013873,2]
[405846496,1771357850311,-500.29634492,0.00013873,2]
[405846497,1771357850320,-500.0,0.00013873,2]
[405846498,1771357850330,-500.0,0.00013873,2]
[405846499,1771357850340,-163.87964352,0.00013873,2]
[405846500,1771357850349,-505.14943602,0.00013873,2]
[405846501,1771357850359,-436.04334629,0.00013873,2]
[405846502,1771357850369,-160.44342054,0.00013873,2]
[405846503,1771357850380,-160.29464371,0.00013873,2]
[405846504,1771357850390,-500.0,0.00013873,2]
[405846505,1771357850400,-500.0,0.00013873,2]
[405846506,1771357850409,-186.11515271,0.00013873,2]
[405846507,1771357850418,-500.0,0.00013873,2]
[405846508,1771357850428,-500.0,0.00013873,2]
[405846509,1771357850439,-500.0,0.00013873,2]
[405846510,1771357850450,-170.20434449,0.00013873,2]
[405846511,1771357850461,-500.0,0.00013873,2]
[405846512,1771357850473,-501.23450591,0.00013873,2]
[405846513,1771357850483,-500.0,0.00013873,2]
[405846514,1771357850492,-500.0,0.00013873,2]
[405846515,1771357850502,-161.87499248,0.00013873,2]
[405846516,1771357850512,-161.95965132,0.00013873,2]
[405846517,1771357850523,-525.66819458,0.00013873,2]
[405846518,1771357850532,-561.11210647,0.00013873,2]
[405846519,1771357850542,-500.0,0.00013873,2]
[405846520,1771357850552,-500.0,0.00013873,2]
[405846521,1771357850561,-500.0,0.00013873,2]
[405846522,1771357850570,-500.0,0.00013873,2]
[405846523,1771357850579,-500.0,0.00013873,2]
[405846524,1771357850589,-500.0,0.00013873,2]
[405846525,1771357850599,-501.14207764,0.00013873,2]
[405846526,1771357850608,-500.0,0.00013873,2]
[405846527,1771357850618,-161.02829907,0.00013873,2]
[405846528,1771357850627,-500.0,0.00013873,2]
[405846529,1771357850637,-559.34470409,0.00013873,2]
[405846530,1771357850646,-500.0,0.00013873,2]
[405846531,1771357850655,-285.23122629,0.00013873,2]
[405846532,1771357850668,-597.93872342,0.00013873,2]
[405846533,1771357850678,-569.45122683,0.00013873,2]
[405846534,1771357850687,-500.0,0.00013873,2]
[405846535,1771357850697,-500.0,0.00013873,2]
[405846536,1771357850708,-500.0,0.00013873,2]
[405846537,1771357850718,-500.0,0.00013873,2]
[405846538,1771357850728,-500.0,0.00013873,2]
[405846539,1771357850739,-501.43225284,0.00013873,2]
[405846540,1771357850748,-10700.0,0.000139,5]
[405846541,1771357850758,-500.0,0.00013918,2]
[405846542,1771357850767,-500.0,0.00013973,2]
[405846543,1771357850777,-500.0,0.00013973,2]
[405846544,1771357850787,-500.0,0.00014028,2]
[405846545,1771357850796,-224.65460803,0.00014083,2]
[405846546,1771357850805,-187.78006525,0.00014139,2]
[405846547,1771357850814,-799.54513345,0.00014139,2]
[405846548,1771357850823,-298.26089446,0.00014139,2]
[405846549,1771357850833,-500.0,0.00014247,2]
[405846550,1771357850843,-15814.0,0.00014353,2]
[405846551,1771357850852,-2500.0,0.00014364,2]
[405846552,1771357850862,-1506.4295813,0.00014364,2]
[405846553,1771357850872,-1464.93718194,0.00014364,2]
[405846554,1771357850882,-2500.0,0.00014364,2]
[405846555,1771357850891,-2238.87048767,0.00014364,2]
[405846556,1771357850902,-2500.0,0.00014364,2]
[405846557,1771357850912,-691.88472966,0.00014364,2]
[405846558,1771357850923,-4479.21,0.00014384,2]
[405846559,1771357850933,-200.0,0.00014384,2]
[405846560,1771357850943,-1000.0,0.00014421,2]
[405846561,1771357850952,-1000.0,0.00014421,2]
[405846562,1771357850962,-1000.0,0.00014421,2]
[405846563,1771357850973,-504.09468333,0.00014421,2]
[405846564,1771357850983,-1000.0,0.00014421,2]
[405846565,1771357850996,-1000.0,0.00014421,2]
[405846566,1771357851007,-1009.85751715,0.00014421,2]
[405846567,1771357851016,-1000.0,0.00014421,2]
[405846568,1771357851026,-501.86536618,0.00014421,2]
[405846569,1771357851036,-1002.86775924,0.00014421,2]
[405846570,1771357851045,-1000.0,0.00014421,2]
[405846571,1771357851055,-1000.0,0.00014421,2]
[405846572,1771357851064,-504.64635869,0.00014421,2]
[405846573,1771357851075,-1000.0,0.00014421,2]
[405846574,1771357851084,-895.81638304,0.00014421,2]
[405846575,1771357851094,-565.44208777,0.00014421,2]
[405846576,1771357851103,-1000.0,0.00014421,2]
[405846577,1771357851114,-1009.6821238,0.00014421,2]
[405846578,1771357851125,-1000.0,0.00014421,2]
[405846579,1771357851135,-502.68727614,0.00014421,2]
[405846580,1771357851144,-651.60051968,0.00014421,2]
[405846581,1771357851153,-1000.0,0.00014421,2]
[405846582,1771357851163,-1000.0,0.00014421,2]
[405846583,1771357851173,-1000.0,0.00014421,2]
[405846584,1771357851182,-1000.0,0.00014421,2]
[405846585,1771357851191,-1000.0,0.00014421,2]
[405846586,1771357851200,-1000.0,0.00014421,2]
[405846587,1771357851210,-1000.0,0.00014421,2]
[405846588,1771357851219,-1000.0,0.00014421,2]
[405846589,1771357851229,-1000.0,0.00014421,2]
[405846590,1771357851240,-1000.0,0.00014421,2]
[405846591,1771357851251,-1000.0,0.00014421,2]
[405846592,1771357851260,-502.80271569,0.00014421,2]
[405846593,1771357851269,-500.0,0.00014521,2]
[405846594,1771357851280,-298.71,0.00014545,2]
[405846595,1771357851289,-215.37,0.00014554,2]
[405846596,1771357851300,-150.0,0.00014556,2]
[405846597,1771357851310,-298.285229,0.0001464,7]
[405846598,1771357851319,-209.29546755,0.00014643,2]
[405846599,1771357851329,-376.35510975,0.00014643,2]
[405846600,1771357851338,-274.82640591,0.00014643,2]
[405846601,1771357851348,-194.72792766,0.00014687,2]
[405846602,1771357851358,-829.12830338,0.00014687,2]
[405846603,1771357851367,-309.29654756,0.00014687,2]